Cogmind - Beta 15 @@@ ROGUE MODE // 2025.05.12 @ 00:27:02 Player: btrs Result: Destroyed by P-60 Hacker with Shock Rifle Performance ------------- Evolutions (3) 1500 Regions Visited (6) 1200 Robots Destroyed (61) 305 Value Destroyed (1923) 1923 Prototype IDs (24) 480 Alien Tech Used (0) 0 Bonus (946) 946 TOTAL SCORE: 6354 Bonus ------- Follower Combat Kills 646 Aligned with FarCom 300 Cogmind --------- Core Integrity 0/700 Matter 162/300 Energy 150/150 System Corruption 28% Temperature Cool (0) Movement Core (100) Ox1 Location -7/Factory Parts ------- > --- POWER (1) -------- Micro Nuclear Core > --- PROPULSION (3) --- (None) > --- UTILITY (7) ------ Improved Salvage Targeting Computer Targeting Computer System Shield > --- WEAPON (2) ------- (None) > --- INVENTORY (5) ---- High-capacity Storage Unit Sensor Array Peak State ------------ > --- POWER ------------ Light Angular Momentum Engine > --- PROPULSION ------- Light Treads Armored Treads Armored Treads > --- UTILITY ---------- High-capacity Storage Unit Army-in-a-Box > --- WEAPON ----------- Improved Spread Laser Minigun > --- INVENTORY -------- Ion Engine Light Ion Engine Light Treads Advanced Heat Sink Sensor Array Targeting Computer Core Shielding Light Armor Plating Light Armor Plating Improved Medium Armor Plating Improved Medium Armor Plating Improved Medium Armor Plating Improved Medium Armor Plating Reactive Plating EM Shotgun Assault Rifle Flak Cannon EMP Blaster Hammer [Rating: 79] Favorites ----------- Power Ion Engine Engine Ion Engine Power Core Micro Nuclear Core Propulsion Light Treads Treads Light Treads Utility High-capacity Storage Unit Device Army-in-a-Box Storage High-capacity Storage Unit Processor Targeting Computer Hackware System Shield Protection Heavy Armor Plating Weapon Particle Cannon Energy Gun Medium Laser Energy Cannon Particle Cannon Ballistic Gun Minigun Ballistic Cannon Flak Cannon Launcher EMP Blaster Impact Weapon Hammer Slashing Weapon Greatsword Build | -11 -10 -10 -10 -9 -8 -7 ------- Run | Yrd Mat Min Exi Min Mat Fac Slots Evolved 6 | . . . . . 4 2 Power . | . . . . . . . Propulsion 1 | . . . . . . 1 Utility 5 | . . . . . 4 1 Weapon . | . . . . . . . Parts Attached 56 | 6 5 1 . . 20 24 Power 8 | 1 . 1 . . 1 5 Engine 6 | 1 . 1 . . 1 3 Core 2 | . . . . . . 2 Reactor . | . . . . . . . Propulsion 10 | 2 1 . . . 4 3 Treads 10 | 2 1 . . . 4 3 Leg . | . . . . . . . Wheel . | . . . . . . . Hover . | . . . . . . . Flight . | . . . . . . . Utility 27 | 1 4 . . . 11 11 Device 3 | . . . . . 2 1 Storage 3 | 1 1 . . . . 1 Processor 4 | . 1 . . . 1 2 Hackware 1 | . . . . . . 1 Protection 16 | . 2 . . . 8 6 Artifact . | . . . . . . . Weapon 11 | 2 . . . . 4 5 Energy Gun 4 | 1 . . . . 1 2 Energy Cannon 1 | . . . . . 1 . Ballistic Gun 2 | 1 . . . . 1 . Ballistic Cannon 1 | . . . . . . 1 Launcher 1 | . . . . . . 1 Special Weapon . | . . . . . . . Impact Weapon 1 | . . . . . 1 . Slashing Weapon 1 | . . . . . . 1 Piercing Weapon . | . . . . . . . Special Melee Weapon . | . . . . . . . Unidentified Prototypes 1 | . . . . . . 1 Parts Lost 18 | . 1 . . . 2 15 Power 2 | . . . . . . 2 Propulsion 1 | . . . . . . 1 Utility 10 | . 1 . . . 2 7 Weapon 5 | . . . . . . 5 Highest Loss Streak 6 | . 1 . . . 1 6 To Critical Strikes . | . . . . . . . Average Backups 13 | . 11 17 17 15 14 14 Power 2 | . 3 4 3 2 2 1 Propulsion 1 | . 1 2 2 2 1 . Utility 7 | . 5 9 8 7 6 7 Weapon 2 | . . 2 3 3 3 3 Tool/Special . | . . . . . . . Unused Backups 8 | . . . 5 1 1 1 Power 1 | . . . 1 . . . Propulsion . | . . . . . . . Utility 5 | . . . 2 1 1 1 Weapon 2 | . . . 2 . . . Tool/Special . | . . . . . . . Average Slot Usage (%) 79 | . 99 99 75 71 90 53 Engine 9 | . 14 13 14 14 9 5 Treads 21 | . 28 28 28 28 18 16 Device 3 | . . . . . 7 4 Storage 9 | . 14 14 14 14 9 5 Processor 8 | . 8 14 14 14 10 2 Protection 7 | . 4 . . . 18 3 Energy Gun 5 | . 14 14 2 . 2 1 Energy Cannon 3 | . . . . . 7 4 Ballistic Gun 7 | . 14 14 2 . 6 4 Peak Build Rating 79 | 6 8 8 11 12 37 79 Average Rating 27 | 4 7 7 8 11 30 51 On Entrance 11 | . 6 8 8 11 12 37 Naked Turns . | . . . . . . . Heaviest Build 136 | 14 50 49 49 45 75 136 Greatest Support 60 | 40 40 40 40 40 40 60 Greatest Overweight (x) 4 | . 1 1 1 1 1 4 Average Overweight (x) . | . . 1 1 1 1 1 Largest Inventory Capacity 20 | 8 20 20 20 20 20 20 Average Capacity 17 | 7 15 20 20 20 20 15 Most Carried 20 | 1 17 18 20 20 20 20 Average Carried 15 | . 11 17 19 19 19 14 Final Capacity 20 | 8 20 20 20 20 20 5 Final Carried 20 | 1 17 18 20 20 20 2 Class Distribution -------------------- 96% | Mutant 3% | Scavenger-Mutant Dominant Class ---------------- Mutant | -10/Materials Mutant | -10/Mines Mutant | -10/Exiles Mutant | -9/Mines Mutant | -8/Materials Mutant | -7/Factory Resources | -11 -10 -10 -10 -9 -8 -7 ----------- Run | Yrd Mat Min Exi Min Mat Fac Matter Collected 1242 | 205 297 37 . . 403 300 Remotely . | . . . . . . . Salvage Created 2371 | . 621 83 . . 1147 520 Parts 116 | . 36 9 . . 47 24 Haulers Intercepted 4 | . 2 . . . . 2 Recyclers Shooed 2 | . 2 . . . . . Parts Field Recycled . | . . . . . . . Retrieved Matter . | . . . . . . . Parts Self-Destructed . | . . . . . . . Prevented . | . . . . . . . Kills | -11 -10 -10 -10 -9 -8 -7 ------- Run | Yrd Mat Min Exi Min Mat Fac Combat Hostiles Destroyed 46 | . 11 6 . . 20 9 Guns 28 | . 11 6 . . 8 3 Cannons 14 | . . . . . 10 4 AOE 3 | . . . . . 1 2 Classes Destroyed 13 | . 6 . . . 5 2 Worker 2 | . . . . . . 2 Builder 1 | . . . . . 1 . Hauler 4 | . 2 . . . . 2 Recycler 4 | . 2 . . . 1 1 Operator 1 | . 1 . . . . . Watcher 3 | . 2 . . . 1 . Swarmer 12 | . 6 6 . . . . Grunt 22 | . 5 . . . 13 4 Brawler 3 | . . . . . 1 2 Sentry 2 | . . . . . 2 . Specialist 2 | . . . . . 2 . Hunter 4 | . . . . . 2 2 Programmer 1 | . . . . . . 1 Best Kill Streak 8 | . 4 3 . . 4 8 Combat Bots Only 4 | . 3 3 . . 4 4 Max Kills in Single Turn 5 | . 1 1 . . 2 5 Gunslinging . | . . . . . . . Exploded 2 | . . . . . 1 2 Melee . | . . . . . . . Uniques/NPCs Destroyed . | . . . . . . . Combat | -11 -10 -10 -10 -9 -8 -7 -------- Run | Yrd Mat Min Exi Min Mat Fac Hostile Shots Fired 369 | . 70 19 . . 144 136 Missed 98 | . 19 3 . . 44 32 Hits 271 | . 51 16 . . 100 104 Melee 2 | . . . . . . 2 Projectile 269 | . 51 16 . . 100 102 Critical Strikes 11 | . 1 . . . 1 9 Damage Taken 5030 | . 482 128 . . 1621 2799 Core 963 | . 60 38 . . 161 704 Absorbed by Shields . | . . . . . . . Redirected to Shielding 60 | . 18 . . . 28 14 Ignored by Resistances 39 | . . . . . . 39 Core Remaining (%) 76 | 100 . . . 60 70 . Volleys Fired 193 | . 64 9 . . 81 39 Largest 2 | . 2 2 . . 2 2 Hottest 113 | . 70 70 . . 113 112 Shots Fired 352 | . 128 18 . . 146 60 Gun 247 | . 128 18 . . 65 36 Cannon 104 | . . . . . 81 23 Launcher 1 | . . . . . . 1 Special . | . . . . . . . Kinetic 158 | . 64 9 . . 47 38 Thermal 171 | . 64 9 . . 81 17 Explosive . | . . . . . . . Electromagnetic 23 | . . . . . 18 5 Robot Hit Streak 15 | . 8 3 . . 10 15 Robot Miss Streak 7 | . 3 3 . . 2 7 Penetration Max . | . . . . . . . Secondary Targets 3 | . . 2 . . . 1 Max Gunslinging Chain 1 | . . 1 . . . 1 Shots Hit Robots 235 | . 68 10 . . 107 50 Core Hits 138 | . 30 6 . . 49 53 Critical Kills 1 | . . . . . 1 . Critical Parts Destroyed . | . . . . . . . Critical Strikes 4 | . 3 . . . 1 . Burn 3 | . 3 . . . . . Meltdown 1 | . . . . . 1 . Melee Attacks 26 | . . . . . 7 19 Impact 16 | . . . . . 7 9 Slashing 10 | . . . . . . 10 Piercing . | . . . . . . . Sneak Attacks . | . . . . . . . Combat Hostiles . | . . . . . . . Follow-up Attacks . | . . . . . . . Damage Inflicted 4984 | 7 911 138 . . 2357 1571 Guns 2372 | . 910 138 . . 831 493 Cannons 1683 | . . . . . 1277 406 Explosions 740 | . . . . . 249 491 Melee 92 | . . . . . . 92 Ramming 97 | 7 1 . . . . 89 Kinetic 1688 | . 470 88 . . 541 589 Thermal 2318 | . 440 50 . . 1526 302 Explosive 475 | . . . . . . 475 Electromagnetic 314 | . . . . . 290 24 Impact . | . . . . . . . Slashing 92 | . . . . . . 92 Piercing . | . . . . . . . Highest Corruption 28 | . . . . . . 28 Average Corruption 21 | . . . . . . 21 Corruption Purged . | . . . . . . . Corruption Blocked . | . . . . . . . Effects 33 | . . . . . . 33 Message Errors 6 | . . . . . . 6 Matter Fused 9 | . . . . . . 9 Heat Flow Errors 7 | . . . . . . 7 Energy Discharges 2 | . . . . . . 2 Parts Rejected 1 | . . . . . . 1 Data Loss (minor) 4 | . . . . . . 4 Data Loss (major) 1 | . . . . . . 1 Misdirections 2 | . . . . . . 2 Weapon Failures 1 | . . . . . . 1 Overload Shots . | . . . . . . . Overflow Damage 145 | . . . . . 11 134 Projectiles . | . . . . . . . Explosions 135 | . . . . . 11 124 Melee 10 | . . . . . . 10 Knockbacks 8 | . . . . . . 8 Impact . | . . . . . . . Kinetic 8 | . . . . . . 8 Secondary . | . . . . . . . Self-Inflicted Damage 446 | . . . . . . 446 Shots 4 | . . . . . . 4 Rammed 44 | 1 2 . . . . 41 Targets Rammed 44 | 1 2 . . . . 41 Kicked . | . . . . . . . Crushed . | . . . . . . . Highest Temperature 596 | . 159 45 . . 324 596 Average Temperature 88 | . 46 21 . . 75 179 Received Heat Transfer 786 | . 99 . . . 549 138 Effects 18 | . . . . . 2 16 Shutdowns 3 | . . . . . . 3 Interference 4 | . . . . . 2 2 Matter Decay 2 | . . . . . . 2 Short Circuit 1 | . . . . . . 1 Damage (minor) 3 | . . . . . . 3 Damage (major) 5 | . . . . . . 5 Siege Activations . | . . . . . . . Martial Activations . | . . . . . . . Shielding Activations . | . . . . . . . Robots Disrupted 1 | . . . . . . 1 Combat Hostiles 1 | . . . . . . 1 Robots Corrupted . | . . . . . . . Combat Hostiles . | . . . . . . . Parts Fried 1 | . . . . . 1 . Impact Corruptions 1 | . . . . . . 1 Robots Melted 1 | . . . . . 1 . Combat Hostiles 1 | . . . . . 1 . Parts Melted 8 | . 2 1 . . 5 . Heat Transferred 4580 | . 1517 148 . . 2594 321 Parts Sabotaged . | . . . . . . . Parts Stolen . | . . . . . . . Parts Stripped . | . . . . . . . Power Chain Reactions 3 | . . . . . 3 . Alert | -11 -10 -10 -10 -9 -8 -7 ------- Run | Yrd Mat Min Exi Min Mat Fac Maximum Alert Level . | . . . . . . . Low Security (%) 100 | 100 100 100 . 100 100 100 Level 1 . | . . . . . . . Level 2 . | . . . . . . . Level 3 . | . . . . . . . Level 4 . | . . . . . . . Level 5 . | . . . . . . . High Security . | . . . . . . . Max Security . | . . . . . . . Peak Influence 176 | . 78 70 . . 176 166 Initial 62 | . . . . . . 62 Average 53 | . 13 25 . . 67 83 Influence Increases 2052 | . 308 148 . . 638 958 Destroy 0b10 Robot/C 1240 | . 220 120 . . 400 500 Destroy 0b10 Robot/NC 105 | . 35 . . . 15 55 Destroy Leader 238 | . 48 20 . . 92 78 Allied During Kill 157 | . . 8 . . . 149 Successful Hack 43 | . 4 . . . 39 . Disable Machine 120 | . . . . . 30 90 Destroy Structure 59 | . 1 . . . 17 41 Lose Combat Pursuer 90 | . . . . . 45 45 Influence Decreases 1930 | . 308 110 38 . 501 973 Entered New Map 113 | . . . 38 . . 75 Time Decay 1472 | . 298 110 . . 481 583 Lost Part 156 | . 10 . . . 20 126 Lost Ally 189 | . . . . . . 189 Squads Dispatched 16 | . 1 . . . 6 9 Investigation 4 | . . . . . 2 2 Extermination 4 | . . . . . . 4 Reinforcement 7 | . 1 . . . 4 2 Assault . | . . . . . . . Garrison 1 | . . . . . . 1 Intercept . | . . . . . . . Searches Triggered . | . . . . . . . Construction Impeded 1 | . . . . . 1 . Haulers Reinforced 1 | . . . . . . 1 Active Scanning Responses . | . . . . . . . Cargo Convoy Interrupts 1 | . . . . . . 1 Stealth | -11 -10 -10 -10 -9 -8 -7 --------- Run | Yrd Mat Min Exi Min Mat Fac Distress Signals 7 | . . . . . 4 3 Communications Jammed . | . . . . . . . Distress Signals . | . . . . . . . Times Spotted 95 | . 18 5 . . 32 40 Peak Tracking Total 6 | . 4 3 . . 6 5 Tactical Retreats 6 | . . . . . 3 3 Traps | -11 -10 -10 -10 -9 -8 -7 ------- Run | Yrd Mat Min Exi Min Mat Fac Traps Triggered 2 | . . . . . . 2 Indirectly . | . . . . . . . Trap Hack Attempts . | . . . . . . . Triggered . | . . . . . . . Disarmed . | . . . . . . . Reprogrammed . | . . . . . . . Reused . | . . . . . . . Traps Extracted . | . . . . . . . Installed . | . . . . . . . Triggered . | . . . . . . . Machines | -11 -10 -10 -10 -9 -8 -7 ---------- Run | Yrd Mat Min Exi Min Mat Fac Machines Disabled 8 | . . . . . 2 6 Max in Single Turn 3 | . . . . . 1 3 Machines Repaired . | . . . . . . . Machines Dismantled . | . . . . . . . Machines Sabotaged . | . . . . . . . Overloaded Fab Kills . | . . . . . . . Hacking | -11 -10 -10 -10 -9 -8 -7 --------- Run | Yrd Mat Min Exi Min Mat Fac Machines Accessed 14 | . 1 . 1 . 5 7 Terminals 9 | . 1 . . . 4 4 Fabricators 3 | . . . . . . 3 Repair Stations . | . . . . . . . Recycling Units 1 | . . . . . 1 . Scanalyzers . | . . . . . . . Garrison Access . | . . . . . . . Total Hacks 30 | . 3 . 1 . 14 12 Successful 13 | . 3 . 1 . 7 2 Failed 17 | . . . . . 7 10 Catastrophic 7 | . . . . . 2 5 Database Lockouts . | . . . . . . . Manual 14 | . 3 . 1 . 7 3 Terminals 19 | . 3 . . . 11 5 Fabricators 7 | . . . . . . 7 Repair Stations . | . . . . . . . Recycling Units 3 | . . . . . 3 . Scanalyzers . | . . . . . . . Garrison Access . | . . . . . . . Terminal Hacks 8 | . 2 . 1 . 5 . Level Access Points 1 | . . . . . 1 . Branch Access Points 1 | . . . . . 1 . Locate Traps 3 | . 1 . . . 2 . Hauler Manifests 1 | . . . . . 1 . Zone Layout 1 | . 1 . . . . . Proto ID Catalog 1 | . . . 1 . . . Fabricator Hacks 2 | . . . . . . 2 Network Status 2 | . . . . . . 2 Repair Station Hacks . | . . . . . . . Recycling Unit Hacks 2 | . . . . . 2 . Report Inventory 1 | . . . . . 1 . Retrieve Components 1 | . . . . . 1 . Scanalyzer . | . . . . . . . Garrison Access Hacks . | . . . . . . . Unauthorized Hacks 1 | . 1 . . . . . Terminals 1 | . 1 . . . . . Botnet 1 | . 1 . . . . . Fabricators . | . . . . . . . Repair Stations . | . . . . . . . Recycling Units . | . . . . . . . Scanalyzers . | . . . . . . . Garrison Access . | . . . . . . . Data Cores Recovered . | . . . . . . . Used . | . . . . . . . Hacking Detections 10 | . . . . . 4 6 Full Trace Events 4 | . . . . . 2 2 Feedback Events . | . . . . . . . Feedback Blocked . | . . . . . . . Robot Schematics Acquired . | . . . . . . . Robots Built . | . . . . . . . Authchips . | . . . . . . . Time . | . . . . . . . Total Robot Build Rating . | . . . . . . . Part Schematics Acquired . | . . . . . . . Parts Built . | . . . . . . . Authchips . | . . . . . . . Time . | . . . . . . . Total Part Build Rating . | . . . . . . . Parts Repaired . | . . . . . . . Time . | . . . . . . . Parts Recycled . | . . . . . . . Recycled Matter . | . . . . . . . Retrieved Matter . | . . . . . . . Retrieved Components 9 | . . . . . 9 . Parts Scanalyzed . | . . . . . . . Part Schematics Acquired . | . . . . . . . Parts Damaged . | . . . . . . . Bothacking | -11 -10 -10 -10 -9 -8 -7 ------------ Run | Yrd Mat Min Exi Min Mat Fac Used RIF Installer . | . . . . . . . Robots Hacked . | . . . . . . . Non-combat . | . . . . . . . Combat . | . . . . . . . Robot Hacks Applied . | . . . . . . . Relay Couplers Released 1 | . . . . . . 1 Machine Destruction 1 | . . . . . . 1 Fabnet Peak Effective % . | . . . . . . . Robots Rewired . | . . . . . . . Allies Hacked . | . . . . . . . Hacks Repelled . | . . . . . . . Allies | -11 -10 -10 -10 -9 -8 -7 -------- Run | Yrd Mat Min Exi Min Mat Fac Total Allies 2 | . . 2 . . . . Largest Group 2 | . . 2 2 . . . Highest-Rated Group 41 | . . 41 41 . . . Highest-Rated Ally 31 | . . 31 31 . . . Total Orders 4 | . . . . . . 4 RETURN 4 | . . . . . . 4 Ally Attacks 205 | . . . . . . 205 Total Damage 3262 | . . . . . . 3262 Kills 27 | . . . . . . 27 Allies Corrupted . | . . . . . . . Allies Melted . | . . . . . . . Intel | -11 -10 -10 -10 -9 -8 -7 ------- Run | Yrd Mat Min Exi Min Mat Fac Active Infowar (turns) 2242 | . 917 352 533 159 281 . T.N.C. 2242 | . 917 352 533 159 281 . Robot Analysis Total . | . . . . . . . Derelict Logs Recovered 1 | . . . . 1 . . Drone Launches 49 | . . . . . . 49 Drone Recoveries 19 | . . . . . . 19 Exploration | -11 -10 -10 -10 -9 -8 -7 ------------- Run | Yrd Mat Min Exi Min Mat Fac Turns Passed 6028 | 107 1427 352 533 159 1569 1881 Spaces Moved 2290 | 64 573 133 221 66 433 800 Core 440 | 5 . . . . . 435 Treads 1850 | 59 573 133 221 66 433 365 Legs . | . . . . . . . Wheels . | . . . . . . . Hover . | . . . . . . . Flight . | . . . . . . . Fastest Speed 50 | 50 160 240 240 240 240 50 Average Speed 211 | 151 209 240 240 240 241 186 Slowest Speed 325 | 160 240 240 240 240 245 325 Overloaded Moves . | . . . . . . . Propulsion Burnouts . | . . . . . . . Robots Hopped . | . . . . . . . Potential Cave-ins . | . . . . . . . Cave-ins Triggered 1 | . . . . . . 1 Exploration Rate (%) 37 | 5 85 35 60 17 37 24 Regions Visited 6 Branch Regions 3 Pre-discovered Areas . | . . . . . . . Known Exits Taken 1 | . . . . . 1 . Unknown Exits Taken 5 | 1 1 1 1 1 . . Scrap Searched 2 | . . 1 . 1 . . Spaces Dug 11 | . . . . . 4 7 Terrain Destroyed 54 | . . . . . 13 41 Melee 11 | . . . . . 4 7 Projectile . | . . . . . . . AOE 43 | . . . . . 9 34 Terrain Rammed . | . . . . . . . Walls Destroyed . | . . . . . . . Machines Disabled . | . . . . . . . Actions | -11 -10 -10 -10 -9 -8 -7 --------- Run | Yrd Mat Min Exi Min Mat Fac Total 3095 | 71 670 149 229 69 809 1098 Wait 387 | . 9 5 . . 242 131 Move 2285 | 64 572 132 220 65 432 800 Hop . | . . . . . . . Pick Up 40 | 1 16 1 1 2 10 9 Fast Attach 15 | 6 1 . . . 3 5 Attach 35 | . 1 1 . . 9 24 Detach 10 | . . 1 2 . 3 4 Swap 22 | . 4 . . . 12 6 Drop 33 | . 1 . 6 2 10 14 Fire 193 | . 64 9 . . 81 39 Melee 26 | . . . . . 7 19 Ram 41 | . . . . . . 41 Kick . | . . . . . . . Crush 2 | . 2 . . . . . Escape Stasis 2 | . . . . . . 2 Rewire 4 | . . . . . . 4 Trap . | . . . . . . . Miscellaneous . | . . . . . . . Route ------- -11/Scrapyard -10/Materials (discovered 4 exits: [*Mat x2] / [*Min] / [*Sub]) -10/Mines (discovered 2 exits: [*Mat] / *Exi) -10/Exiles -9/Mines -8/Materials (discovered 3 exits: *Fac x3) -7/Factory History --------- Turn | Location | Event 9 | -11/Scrapyard | Discovered new exit (range 14) 108 | -11/Scrapyard | Entered Materials 203 | -10/Materials | Discovered new exit (range 8) 315 | -10/Materials | Build established: Mutant 654 | -10/Materials | Discovered new exit (range 8) 922 | -10/Materials | Discovered new exit (range 7) 1320 | -10/Materials | Discovered new exit (range 6) 1535 | -10/Materials | Entered Mines 1693 | -10/Mines | Discovered new exit (range 12) 1867 | -10/Mines | Deemed a non-threat by the Exiles lab entrance 1870 | -10/Mines | Discovered new exit (range 5) 1887 | -10/Mines | Entered Exiles 1887 | -10/Exiles | Accompanied by 2 allies 1917 | -10/Exiles | Led the pair of lost Derelicts to a safe place 1952 | -10/Exiles | Met 8R-AWN 1987 | -10/Exiles | Met EX-HEX 2059 | -10/Exiles | Met EX-BIN 2088 | -10/Exiles | Aligned with FarCom system 2090 | -10/Exiles | Given EX-Vault access code 2148 | -10/Exiles | Opened EX-Vault 2172 | -10/Exiles | Found Army-in-a-Box 2226 | -10/Exiles | Warned to stay clear of 0b10 Research branches 2298 | -10/Exiles | Met EX-DEC 2399 | -10/Exiles | Discovered new exit (range 11) 2420 | -10/Exiles | Left Exiles lab with Army-in-a-Box 2420 | -10/Exiles | Entered Mines 2541 | -9/Mines | Learned location of 1 exit from Proximity Caves 2555 | -9/Mines | Discovered new exit (range 10) 2579 | -9/Mines | Entered Materials 2579 | -8/Materials | Evolved 4 slots: Utility x4 3735 | -8/Materials | Identified exit to Factory 4148 | -8/Materials | Entered Factory 4148 | -7/Factory | Evolved 2 slots: Propulsion x1, Utility x1 4618 | -7/Factory | Garrison activated, responded to threat 4784 | -7/Factory | Lost 4 allies 4928 | -7/Factory | Cargo convoy interrupted 4958 | -7/Factory | Lost 3 allies 5057 | -7/Factory | Lost 4 allies 5252 | -7/Factory | Lost 13 allies 5310 | -7/Factory | Lost 3 allies 5386 | -7/Factory | Crushed by falling debris 5386 | -7/Factory | System corruption reached 10% 5533 | -7/Factory | Lost 6 parts (1p4u1w) 5590 | -7/Factory | Core integrity fell below 50% 5991 | -7/Factory | Core integrity fell below 20% 6029 | -7/Factory | Destroyed by P-60 Hacker with Shock Rifle Last Messages --------------- 06008_ Imp. Salvage Targeting Computer temporarily disabled. 06009_ Slammed into P-60 Hacker. 06010_ Destroyed Shock Rifle. 06010_ P-60 Hacker system corrupted by crushing effect. 06011_ Slammed into P-60 Hacker. 06016_ System corrupted: Matter fused (-5). 06016_ Slammed into P-60 Hacker. 06016_ K-01 Serf cleans the Terminal. 06018_ Slammed into P-60 Hacker. 06019_ P-60 Hacker IFF system glitched. 06020_ Slammed into P-60 Hacker. 06020_ K-01 Serf cleans the Terminal. 06021_ Slammed into P-60 Hacker. 06024_ K-01 Serf cleans the Terminal. 06024_ Slammed into P-60 Hacker. 06027_ K-01 Serf destroyed. 06028_ Slammed into P-60 Hacker. 06028_ Targeting Computer broken. 06028_ Destabilizing: Short circuit. 06029_ Slammed into P-60 Hacker. Map ----- +----------------------------------------------------+ | ?????????????????????????????????????????????????? | | ?????????????????????????????????????????????????? | | ?????????????????????????????????????????????????? | | ?????????????????????????????????????????????????? | | ?????????????????????????????????????????????????? | | ??????????????????????????????????########???????? | | ??????????? ??????????????????????# #???????? | | ?????????? ????????????????????# """ #???????? | | ????????? ################### """ #???????? | | ????????? + """ #???????? | | ????????? ########+# #???????? | | ????????? ## # ! #???????? | | ???????????####### """ ##"" ########???????? | | ?????????????????# """ ##" #??????????????? | | ?????????????????# """ ##"F #??????????????? | | ?????????????????# ##"" #??????????????? | | ?????????????????# g ## #??????????????? | | ????????????????## ########+#####??????????? | | ?????????????+ h h g #??????????? | | ?????????????#####+#####g##### #??????????? | | ??????????????????????# !""" # #??????????? | | ??????????????????????#*%"T" # #??#######?? | | ??????????????????????# =" " # """ # #?? | | ??????????????????????# # """ + #?? | | ??????????????????????# # """ # #?? | | ??????????????????????# @ # #? """### | | ??????????????????????####p### """ #???? """# | | ?????????????????????????# """ +??????""# | | ?????????????????????????# """ ##????????# | | ?????????????????????????# #?????????# | | ?????????????????????????# #?????????# | | ?????????????????????????# #######?????????# | | ?????????????????????????# #???????????????# | | ??????????????############ ##??????????????# | | ??????????????# # #?####?????????# | | ??????????????# !! # ###T ############+ | | ??????????????# !! # | | ??????????????# + Y | | ??????????????# # | | ??????????????# # ################## | | ??????????????# # #????????????????? | | ??????????????# #########????????????????? | | ??????????????###########????????????????????????? | | ?????????????????????????????????????????????????? | | | | | | | | | | | | | +----------------------------------------------------+ Best States ------------- Heat Dissipation 53 Energy Generation 18 Energy Capacity 250 Matter Stores 300 Matter Capacity 300 Sight Range 16 Terrain Scan Density 10 Armor Coverage 1050 Resistance: KI 20 Resistance: EM 20 Core Shielding 20 Power Shielding 33 Propulsion Shielding 33 Evasion (%) 50 Targeting Accuracy 5 Recoil Reduction 3 Salvage Targeting 2 Defensive Hacking 10 Item Schematics ----------------- None Robot Schematics ------------------ None Fabricated ------------ Nothing Repaired ---------- Nothing Alien Tech Used ----------------- None Achievements -------------- None Challenges ------------ None Game ------ Seed SpectralHypervelocityShield Manual? 0 Play Time 00:58:20 Cumulative 75.9 hours Start 2025.05.11 @ 19:10:12 End 2025.05.12 @ 00:27:02 Sessions 3 Manual Loads 0 Difficulty Rogue Special Mode None Game No. 40 Rogue 34 Adventurer 6 Explorer 0 Win Type - Total 3 Types 3/0/0/0/0/0/0/0/0/0 Lore% 23 Gallery% 38 Achievement% 37 Wizard Run 0 Options --------- Layout 0 ASCII 1 Keyboard 1 Movement Vi Keybinds 0 Fullscreen 1 Font 24/Smallcaps Map View 76x50 Zoom Use 0% Tactical HUD 1 Map Filters NONE Filters NONE Steam 1 RUN: 04305eeb-b269-4184-88b2-953bed1eeb97